fUST/lending_fUST_20250717
["ID","MTS","AMOUNT","RATE_DAILY","PERIOD"]
[372761636,1752751844468,-630.62,0.00019101,2]
[372761637,1752751844477,-460.0,0.00019101,2]
[372761638,1752751844487,-484.65,0.00019101,2]
[372761639,1752751844496,-1182.61,0.00019103,2]
[372761640,1752751844505,-1133.33,0.00019103,2]
[372761641,1752751844515,-460.0,0.00019103,2]
[372761642,1752751844524,-460.0,0.00019103,2]
[372761643,1752751844534,-752.75,0.00019103,2]
[372761644,1752751844545,-460.0,0.00019103,2]
[372761645,1752751844555,-460.0,0.00019103,2]
[372761646,1752751844566,-460.0,0.00019103,2]
[372761647,1752751844576,-460.0,0.00019103,2]
[372761648,1752751844585,-595.36,0.00019103,2]
[372761649,1752751844595,-596.24,0.00019103,2]
[372761650,1752751844605,-536.44,0.00019103,2]
[372761651,1752751844614,-470.42,0.00019103,2]
[372761652,1752751844624,-460.0,0.00019103,2]
[372761653,1752751844633,-460.0,0.00019103,2]
[372761654,1752751844642,-3846.76,0.00019103,2]
[372761655,1752751844652,-599.58,0.00019103,2]
[372761656,1752751844661,-460.0,0.00019103,2]
[372761657,1752751844671,-1004.86,0.00019103,2]
[372761658,1752751844681,-460.0,0.00019103,2]
[372761659,1752751844693,-576.28,0.00019103,2]
[372761660,1752751844703,-460.0,0.00019104,2]
[372761661,1752751844714,-386.13878478,0.00019104,2]
[372761662,1752751844724,-460.0,0.00019104,2]
[372761663,1752751844734,-2034.08,0.00019104,2]
[372761664,1752751844744,-460.0,0.00019104,2]
[372761665,1752751844754,-908.51,0.00019104,2]
[372761666,1752751844763,-962.34,0.00019104,2]
[372761667,1752751844774,-4626.45,0.00019104,2]
[372761668,1752751844784,-810.85,0.00019104,2]
[372761669,1752751844794,-1245.54,0.00019104,2]
[372761670,1752751844804,-2000.0,0.00019116,2]
[372761671,1752751844813,-9335.88532738,0.00019141,2]
[372761672,1752751844823,-215.59244943,0.00019159,2]
[372761673,1752751844832,-214.44804168,0.00019159,2]
[372761674,1752751844842,-12607.95677342,0.00019159,2]
[372761675,1752751844851,-839.15451687,0.00019159,2]
[372761676,1752751844861,-160.0,0.00019159,2]
[372761677,1752751844871,-160.0,0.00019159,2]
[372761678,1752751844880,-525.67742785,0.00019159,2]
[372761679,1752751844889,-160.0,0.00019159,2]
[372761680,1752751844899,-230.85589339,0.00019159,2]
[372761681,1752751844909,-476.16111942,0.00019159,2]
[372761682,1752751844920,-160.0,0.00019159,2]
[372761683,1752751844930,-160.0,0.00019159,2]
[372761684,1752751844941,-160.0,0.00019159,2]
[372761685,1752751844950,-160.0,0.00019159,2]
[372761686,1752751844960,-160.0,0.00019159,2]
[372761687,1752751844970,-474.192975,0.00019178,2]
[372761688,1752751844979,-666.0,0.00019178,2]
[372761689,1752751844989,-151.0,0.000192,2]
[372761690,1752751844999,-460.0,0.00019206,2]
[372761691,1752751845009,-152.97,0.00019206,2]
[372761692,1752751845019,-499.85,0.00019206,2]
[372761693,1752751845030,-5000.0,0.00019242,2]
[372761694,1752751845042,-303.00000303,0.00019278,2]
[372761695,1752751845053,-151.0,0.00019329,2]
[372761696,1752751845063,-163.047601,0.00019329,2]
[372761697,1752751845073,-151.0,0.00019329,2]
[372761698,1752751845083,-163.047601,0.00019329,2]
[372761699,1752751845093,-151.0,0.00019329,2]
[372761700,1752751845103,-151.0,0.00019329,2]
[372761701,1752751845113,-151.0,0.00019329,2]
[372761702,1752751845122,-151.0,0.00019329,2]
[372761703,1752751845131,-233.447378,0.00019329,2]
[372761704,1752751845141,-233.447378,0.00019329,2]
[372761705,1752751845151,-218.958254,0.00019329,2]
[372761706,1752751845161,-218.958254,0.00019329,2]
[372761707,1752751845171,-151.363282,0.00019329,2]
[372761708,1752751845182,-228.224285,0.00019329,2]
[372761709,1752751845191,-228.224285,0.00019329,2]
[372761710,1752751845201,-504.237972,0.00019329,2]
[372761711,1752751845212,-504.237972,0.00019329,2]
[372761712,1752751845222,-100000.0,0.00019329,2]
[372761713,1752751845232,-260.0,0.0001933,2]
[372761714,1752751845242,-5000.0,0.00019346,2]
[372761715,1752751845251,-1330.66,0.00019372,2]
[372761716,1752751845261,-1876.44,0.00019372,2]
[372761717,1752751845270,-500.0,0.00019373,2]
[372761718,1752751845279,-500.0,0.00019373,2]
[372761719,1752751845289,-500.0,0.00019373,2]
[372761720,1752751845299,-500.0,0.00019373,2]
[372761721,1752751845308,-500.0,0.00019373,2]
[372761722,1752751845318,-501.89293347,0.00019373,2]
[372761723,1752751845329,-500.0,0.00019373,2]
[372761724,1752751845340,-463.34381087,0.00019373,2]
[372761725,1752751845349,-500.0,0.00019373,2]
[372761726,1752751845358,-501.97751132,0.00019373,2]
[372761727,1752751845369,-500.0,0.00019373,2]
[372761728,1752751845378,-500.0,0.00019373,2]
[372761729,1752751845387,-505.05020048,0.00019373,2]
[372761730,1752751845398,-500.0,0.00019373,2]
[372761731,1752751845407,-500.0,0.00019373,2]
[372761732,1752751845416,-500.0,0.00019373,2]
[372761733,1752751845426,-500.0,0.00019373,2]
[372761734,1752751845435,-500.0,0.00019373,2]
[372761735,1752751845444,-500.0,0.00019373,2]
[372761736,1752751845453,-500.0,0.00019373,2]
[372761737,1752751845463,-500.0,0.00019373,2]
[372761738,1752751845473,-500.0,0.00019373,2]
[372761739,1752751845482,-500.0,0.00019373,2]
[372761740,1752751845492,-500.0,0.00019373,2]
[372761741,1752751845502,-500.0,0.00019373,2]
[372761742,1752751845511,-500.0,0.00019373,2]
[372761743,1752751845520,-209.02065604,0.00019373,2]
[372761744,1752751845530,-2406.28,0.00019375,2]
[372761745,1752751845539,-915.21,0.00019375,2]
[372761746,1752751845549,-535.23,0.00019375,2]
[372761747,1752751845559,-2033.53,0.00019375,2]
[372761748,1752751845568,-460.0,0.00019375,2]
[372761749,1752751845579,-740.79,0.00019375,2]
[372761750,1752751845589,-475.95,0.00019375,2]
[372761751,1752751845599,-1059.14,0.00019375,2]
[372761752,1752751845608,-357.54927455,0.00019375,2]
[372761753,1752751845618,-630.62,0.00019375,2]
[372761754,1752751845628,-460.0,0.00019375,2]
[372761755,1752751845637,-484.65,0.00019375,2]
[372761756,1752751845647,-1182.61,0.00019377,2]
[372761757,1752751845655,-1133.33,0.00019377,2]
[372761758,1752751845665,-460.0,0.00019377,2]
[372761759,1752751845675,-460.0,0.00019377,2]
[372761761,1752751845684,-752.75,0.00019377,2]
[372761762,1752751845693,-460.0,0.00019377,2]
[372761763,1752751845702,-460.0,0.00019377,2]
[372761764,1752751845713,-460.0,0.00019377,2]
[372761765,1752751845722,-460.0,0.00019377,2]
[372761766,1752751845732,-595.36,0.00019377,2]
[372761767,1752751845741,-596.24,0.00019377,2]
[372761768,1752751845751,-536.44,0.00019377,2]
[372761769,1752751845760,-470.42,0.00019377,2]
[372761770,1752751845769,-460.0,0.00019377,2]
[372761771,1752751845779,-460.0,0.00019377,2]
[372761772,1752751845789,-3846.76,0.00019377,2]
[372761773,1752751845798,-599.58,0.00019377,2]
[372761774,1752751845808,-460.0,0.00019377,2]
[372761775,1752751845817,-1004.86,0.00019377,2]
[372761776,1752751845827,-460.0,0.00019377,2]
[372761777,1752751845837,-576.28,0.00019377,2]
[372761778,1752751845846,-460.0,0.00019378,2]
[372761779,1752751845856,-460.0,0.00019378,2]
[372761780,1752751845866,-2034.08,0.00019378,2]
[372761781,1752751845875,-460.0,0.00019378,2]
[372761782,1752751845885,-908.51,0.00019378,2]
[372761783,1752751845896,-962.34,0.00019378,2]
[372761784,1752751845906,-4626.45,0.00019378,2]
[372761785,1752751845916,-810.85,0.00019378,2]
[372761786,1752751845926,-1245.54,0.00019378,2]
[372761787,1752751845936,-9335.88532738,0.00019383,2]
[372761788,1752751845946,-151.0,0.000194,2]
[372761789,1752751845955,-1007.83630533,0.00019414,2]
[372761790,1752751845966,-6000.0,0.00019448,2]
[372761791,1752751845975,-303.00000303,0.00019467,2]
[372761792,1752751845985,-460.0,0.0001948,2]
[372761793,1752751845995,-499.85,0.0001948,2]
[372761794,1752751846006,-500.0,0.00019484,2]
[372761795,1752751846015,-7477.8573306,0.00019517,2]
[372761796,1752751846025,-151.0,0.000196,2]
[372761797,1752751846034,-333.8,0.00019606,3]
[372761798,1752751846044,-9335.88532738,0.00019624,2]
[372761799,1752751846054,-414.505836,0.00019635,2]
[372761800,1752751846063,-1330.66,0.00019646,2]
[372761801,1752751846073,-1876.44,0.00019646,2]
[372761802,1752751846083,-2406.28,0.00019649,2]
[372761803,1752751846093,-915.21,0.00019649,2]
[372761804,1752751846103,-535.23,0.00019649,2]
[372761805,1752751846113,-2033.53,0.00019649,2]
[372761806,1752751846123,-460.0,0.00019649,2]
[372761807,1752751846132,-740.79,0.00019649,2]
[372761808,1752751846141,-475.95,0.00019649,2]
[372761809,1752751846150,-1059.14,0.00019649,2]
[372761810,1752751846159,-630.62,0.00019649,2]
[372761811,1752751846169,-460.0,0.00019649,2]
[372761812,1752751846178,-484.65,0.00019649,2]
[372761813,1752751846189,-1182.61,0.00019651,2]
[372761814,1752751846198,-1133.33,0.00019651,2]
[372761815,1752751846208,-460.0,0.00019651,2]
[372761816,1752751846217,-460.0,0.00019651,2]
[372761817,1752751846227,-752.75,0.00019651,2]
[372761818,1752751846236,-475.49449632,0.00019651,2]
[372761819,1752751846246,-460.0,0.00019651,2]
[372761820,1752751846255,-460.0,0.00019651,2]
[372761821,1752751846264,-460.0,0.00019651,2]
[372761822,1752751846274,-595.36,0.00019651,2]
[372761823,1752751846283,-596.24,0.00019651,2]
[372761824,1752751846293,-536.44,0.00019651,2]
[372761825,1752751846302,-470.42,0.00019651,2]
[372761826,1752751846311,-460.0,0.00019651,2]
[372761827,1752751846321,-3846.76,0.00019651,2]
[372761828,1752751846334,-599.58,0.00019651,2]
[372761829,1752751846343,-460.0,0.00019651,2]
[372761830,1752751846353,-1004.86,0.00019651,2]
[372761831,1752751846362,-460.0,0.00019651,2]
[372761832,1752751846371,-576.28,0.00019651,2]
[372761833,1752751846381,-216.621632,0.00019652,2]
[372761834,1752751846390,-460.0,0.00019652,2]
[372761835,1752751846399,-2034.08,0.00019652,2]
[372761836,1752751846411,-460.0,0.00019652,2]
[372761837,1752751846422,-908.51,0.00019652,2]
[372761838,1752751846431,-962.34,0.00019652,2]
[372761839,1752751846441,-4626.45,0.00019652,2]
[372761840,1752751846450,-810.85,0.00019652,2]
[372761841,1752751846459,-1245.54,0.00019652,2]
[372761842,1752751846470,-303.00000303,0.00019656,2]
[372761843,1752751846479,-2500.0,0.00019664,2]
[372761844,1752751846489,-500.0,0.00019704,2]
[372761845,1752751846499,-460.0,0.00019754,2]
[372761846,1752751846509,-499.85,0.00019754,2]
[372761847,1752751846519,-179.9820018,0.00019798,2]
[372761848,1752751846528,-454.50000455,0.00019845,4]
[372761849,1752751846538,-1200.0,0.00019865,2]
[372761850,1752751846547,-9335.88532738,0.00019866,2]
[372761852,1752751846557,-360.0,0.00019878,2]
[372761853,1752751846679,-1330.66,0.0001992,2]
[372761854,1752751846689,-1876.44,0.0001992,2]
[372761855,1752751846699,-517.73282195,0.00019921,2]
[372761856,1752751846709,-1000.0,0.00019921,2]
[372761857,1752751846720,-1000.0,0.00019921,2]
[372761858,1752751846730,-1000.0,0.00019921,2]
[372761859,1752751846739,-1000.0,0.00019921,2]
[372761860,1752751846749,-1000.0,0.00019921,2]
[372761861,1752751846761,-1000.0,0.00019921,2]
[372761862,1752751846770,-321.62587952,0.00019921,2]
[372761863,1752751846780,-1000.0,0.00019921,2]
[372761864,1752751846789,-1000.0,0.00019921,2]
[372761865,1752751846799,-1000.0,0.00019921,2]
[372761866,1752751846808,-1000.0,0.00019921,2]
[372761867,1752751846818,-1000.0,0.00019921,2]
[372761868,1752751846827,-540.13657752,0.00019921,2]
[372761869,1752751846837,-348.63922981,0.00019921,2]
[372761870,1752751846847,-2406.28,0.00019923,2]
[372761871,1752751846856,-915.21,0.00019923,2]
[372761872,1752751846866,-535.23,0.00019923,2]
[372761873,1752751846875,-2033.53,0.00019923,2]
[372761874,1752751846884,-740.79,0.00019923,2]
[372761875,1752751846895,-475.95,0.00019923,2]
[372761876,1752751846904,-1059.14,0.00019923,2]
[372761877,1752751846913,-630.62,0.00019923,2]
[372761878,1752751846923,-460.0,0.00019923,2]
[372761879,1752751846933,-484.65,0.00019923,2]
[372761880,1752751846942,-1182.61,0.00019925,2]
[372761881,1752751846951,-1133.33,0.00019925,2]
[372761882,1752751846961,-460.0,0.00019925,2]
[372761883,1752751846971,-460.0,0.00019925,2]
[372761884,1752751846981,-752.75,0.00019925,2]
[372761885,1752751846990,-460.0,0.00019925,2]
[372761886,1752751847000,-460.0,0.00019925,2]
[372761887,1752751847009,-460.0,0.00019925,2]
[372761888,1752751847018,-595.36,0.00019925,2]
[372761889,1752751847028,-596.24,0.00019925,2]
[372761890,1752751847037,-536.44,0.00019925,2]
[372761891,1752751847047,-470.42,0.00019925,2]
[372761892,1752751847056,-460.0,0.00019925,2]
[372761893,1752751847065,-3846.76,0.00019925,2]
[372761894,1752751847074,-599.58,0.00019925,2]
[372761895,1752751847084,-460.0,0.00019925,2]
[372761896,1752751847093,-1004.86,0.00019925,2]
[372761897,1752751847102,-460.0,0.00019925,2]
[372761898,1752751847111,-576.28,0.00019925,2]
[372761899,1752751847121,-460.0,0.00019926,2]
[372761900,1752751847130,-2034.08,0.00019926,2]
[372761901,1752751847139,-460.0,0.00019926,2]
[372761902,1752751847148,-908.51,0.00019926,2]
[372761903,1752751847158,-962.34,0.00019926,2]
[372761904,1752751847167,-4626.45,0.00019926,2]
[372761905,1752751847176,-810.85,0.00019926,2]
[372761906,1752751847186,-1245.54,0.00019926,2]
[372761907,1752751847195,-333.8,0.00019978,3]
[372761908,1752751847204,-11635.1705481,0.0002,2]
[372761909,1752751847214,-300.2710838,0.0002,2]
[372761910,1752751847224,-3801.642,0.00020006,2]
[372761911,1752751847233,-151.0,0.00020006,2]
[372761912,1752751847243,-207.4,0.00020006,2]
[372761913,1752751847252,-151.0,0.00020006,2]
[372761914,1752751847261,-151.0,0.00020006,2]
[372761915,1752751847271,-151.0,0.00020006,2]
[372761916,1752751847280,-151.0,0.00020006,2]
[372761917,1752751847289,-151.0,0.00020006,2]
[372761918,1752751847299,-151.0,0.00020006,2]
[372761919,1752751847308,-151.0,0.00020006,2]
[372761920,1752751847317,-151.0,0.00020006,2]
[372761921,1752751847327,-151.0,0.00020006,2]
[372761922,1752751847339,-151.0,0.00020006,2]
[372761923,1752751847348,-151.0,0.00020006,2]
[372761924,1752751847358,-151.0,0.00020006,2]
[372761925,1752751847367,-151.0,0.00020006,2]
[372761926,1752751847377,-151.0,0.00020006,2]
[372761927,1752751847387,-151.0,0.00020006,2]
[372761928,1752751847396,-151.0,0.00020006,2]
[372761929,1752751847406,-151.0,0.00020006,2]
[372761930,1752751847415,-151.0,0.00020006,2]
[372761931,1752751847425,-151.0,0.00020006,2]
[372761932,1752751847434,-151.0,0.00020006,2]
[372761933,1752751847443,-151.0,0.00020006,2]
[372761934,1752751847452,-151.0,0.00020006,2]
[372761935,1752751847461,-151.0,0.00020006,2]
[372761936,1752751847472,-151.0,0.00020006,2]
[372761937,1752751847481,-151.0,0.00020006,2]
[372761938,1752751847490,-151.0,0.00020006,2]
[372761939,1752751847500,-151.0,0.00020006,2]
[372761940,1752751847509,-151.0,0.00020006,2]
[372761941,1752751847518,-151.0,0.00020006,2]
[372761942,1752751847527,-151.0,0.00020006,2]
[372761943,1752751847536,-151.0,0.00020006,2]
[372761944,1752751847545,-159.14388846,0.00020006,2]
[372761945,1752751847554,-151.0,0.00020006,2]
[372761946,1752751847563,-25000.0,0.00020006,2]
[372761947,1752751847572,-460.0,0.00020028,2]
[372761948,1752751847581,-499.85,0.00020028,2]
[372761949,1752751847590,-605.86368337,0.00020034,4]
[372761950,1752751847599,-724.31412617,0.00020061,2]
[372761951,1752751847608,-9335.88532738,0.00020107,2]
[372761952,1752751847618,-218.958254,0.00020135,2]
[372761953,1752751847627,-218.958254,0.00020135,2]
[372761954,1752751847636,-787.460115,0.00020187,2]
[372761955,1752751847645,-500.0,0.00020193,2]
[372761956,1752751847654,-1330.66,0.00020194,2]
[372761957,1752751847663,-1876.44,0.00020194,2]
[372761958,1752751847672,-2406.28,0.00020197,2]
[372761959,1752751847681,-915.21,0.00020197,2]
[372761960,1752751847690,-535.23,0.00020197,2]
[372761961,1752751847699,-2033.53,0.00020197,2]
[372761962,1752751847708,-740.79,0.00020197,2]
[372761963,1752751847717,-475.95,0.00020197,2]
[372761964,1752751847726,-1059.14,0.00020197,2]
[372761965,1752751847735,-630.62,0.00020197,2]
[372761966,1752751847744,-541.39273542,0.00020197,2]
[372761967,1752751847753,-484.65,0.00020197,2]
[372761968,1752751847762,-1182.61,0.00020199,2]
[372761969,1752751847771,-1133.33,0.00020199,2]
[372761970,1752751847780,-460.0,0.00020199,2]
[372761971,1752751847790,-460.0,0.00020199,2]
[372761972,1752751847799,-752.75,0.00020199,2]
[372761973,1752751847808,-460.0,0.00020199,2]
[372761974,1752751847818,-460.0,0.00020199,2]
[372761975,1752751847827,-460.0,0.00020199,2]
[372761976,1752751847836,-595.36,0.00020199,2]
[372761977,1752751847845,-596.24,0.00020199,2]
[372761978,1752751847855,-536.44,0.00020199,2]
[372761979,1752751847865,-470.42,0.00020199,2]
[372761980,1752751847874,-460.0,0.00020199,2]
[372761981,1752751847884,-3846.76,0.00020199,2]
[372761982,1752751847894,-599.58,0.00020199,2]
[372761983,1752751847905,-460.0,0.00020199,2]
[372761984,1752751847915,-1004.86,0.00020199,2]
[372761985,1752751847924,-460.0,0.00020199,2]
[372761986,1752751847933,-576.28,0.00020199,2]
[372761987,1752751847943,-460.0,0.000202,2]
[372761988,1752751847952,-2034.08,0.000202,2]
[372761989,1752751847962,-460.0,0.000202,2]
[372761990,1752751847972,-908.51,0.000202,2]
[372761991,1752751847981,-962.34,0.000202,2]
[372761992,1752751847991,-4626.45,0.000202,2]
[372761993,1752751848000,-810.85,0.000202,2]
[372761994,1752751848010,-1245.54,0.000202,2]
[372761995,1752751848019,-151.0,0.00020207,2]
[372761996,1752751848029,-163.047601,0.00020207,2]
[372761997,1752751848039,-151.0,0.00020207,2]
[372761998,1752751848048,-163.047601,0.00020207,2]
[372761999,1752751848057,-151.0,0.00020207,2]
[372762000,1752751848067,-151.0,0.00020207,2]
[372762001,1752751848076,-151.0,0.00020207,2]
[372762002,1752751848085,-151.0,0.00020207,2]
[372762003,1752751848095,-233.447378,0.00020207,2]
[372762004,1752751848104,-233.447378,0.00020207,2]
[372762005,1752751848114,-228.224285,0.00020207,2]
[372762006,1752751848123,-228.224285,0.00020207,2]
[372762007,1752751848133,-504.237972,0.00020207,2]
[372762008,1752751848143,-504.237972,0.00020207,2]
[372762009,1752751848152,-3000.0,0.00020212,2]
[372762010,1752751848162,-443.9022192,0.00020302,2]
[372762011,1752751848172,-499.85,0.00020302,2]
[372762012,1752751848182,-9335.88532738,0.00020348,3]
[372762013,1752751848191,-333.8,0.00020349,3]
[372762014,1752751848201,-476.16111942,0.0002035,3]
[372762015,1752751848211,-460.0,0.00020426,2]
[372762016,1752751848221,-1007.83630533,0.00020435,2]
[372762017,1752751848232,-1330.66,0.00020468,2]
[372762018,1752751848241,-1876.44,0.00020468,2]
[372762019,1752751848250,-1500.0,0.00020468,2]
[372762020,1752751848259,-1113.72738664,0.00020468,2]
[372762021,1752751848269,-1500.0,0.00020468,2]
[372762022,1752751848278,-163.56368296,0.00020468,2]
[372762023,1752751848287,-1500.0,0.00020468,2]
[372762024,1752751848296,-1500.0,0.00020468,2]
[372762025,1752751848306,-1500.0,0.00020468,2]
[372762026,1752751848314,-1500.0,0.00020468,2]
[372762027,1752751848324,-1500.0,0.00020468,2]
[372762028,1752751848338,-500.0,0.00020468,2]
[372762029,1752751848347,-1500.0,0.00020468,2]
[372762030,1752751848355,-2406.28,0.00020471,2]
[372762031,1752751848363,-915.21,0.00020471,2]
[372762032,1752751848371,-535.23,0.00020471,2]
[372762033,1752751848380,-2033.53,0.00020471,2]
[372762034,1752751848388,-740.79,0.00020471,2]
[372762035,1752751848397,-475.95,0.00020471,2]
[372762036,1752751848408,-1059.14,0.00020471,2]
[372762037,1752751848418,-630.62,0.00020471,2]
[372762038,1752751848427,-484.65,0.00020471,2]
[372762039,1752751848437,-1182.61,0.00020473,2]
[372762040,1752751848446,-1133.33,0.00020473,2]
[372762041,1752751848455,-460.0,0.00020473,2]
[372762042,1752751848468,-460.0,0.00020473,2]
[372762043,1752751848477,-752.75,0.00020473,2]
[372762044,1752751848486,-460.0,0.00020473,2]
[372762045,1752751848496,-460.0,0.00020473,2]
[372762046,1752751848505,-460.0,0.00020473,2]
[372762047,1752751848514,-595.36,0.00020473,2]
[372762048,1752751848524,-596.24,0.00020473,2]
[372762049,1752751848534,-536.44,0.00020473,2]
[372762050,1752751848543,-470.42,0.00020473,2]
[372762051,1752751848553,-460.0,0.00020473,2]
[372762052,1752751848563,-3846.76,0.00020473,2]
[372762053,1752751848574,-599.58,0.00020473,2]
[372762054,1752751848584,-460.0,0.00020473,2]
[372762055,1752751848594,-1004.86,0.00020473,2]
[372762056,1752751848604,-460.0,0.00020473,2]
[372762057,1752751848613,-576.28,0.00020473,2]
[372762058,1752751848623,-460.0,0.00020474,2]
[372762059,1752751848633,-2034.08,0.00020474,2]
[372762060,1752751848643,-460.0,0.00020474,2]
[372762061,1752751848652,-908.51,0.00020474,2]
[372762062,1752751848661,-962.34,0.00020474,2]
[372762063,1752751848671,-4626.45,0.00020474,2]
[372762064,1752751848680,-810.85,0.00020474,2]
[372762065,1752751848690,-1245.54,0.00020474,2]
[372762066,1752751848700,-500.0,0.00020509,2]
[372762067,1752751848710,-499.85,0.00020576,2]
[372762068,1752751848723,-9335.88532738,0.0002059,3]
[372762069,1752751848733,-214.44804168,0.0002059,3]
[372762070,1752751848742,-414.505836,0.00020659,3]
[372762071,1752751848752,-587.0,0.00020708,2]
[372762072,1752751848762,-333.8,0.00020721,3]
[372762073,1752751848771,-200.6701932,0.00020741,2]
[372762074,1752751848781,-1330.66,0.00020742,2]
[372762075,1752751848791,-1876.44,0.00020742,2]
[372762076,1752751848801,-2406.28,0.00020745,2]
[372762077,1752751848810,-915.21,0.00020745,2]
[372762078,1752751848821,-535.23,0.00020745,2]
[372762079,1752751848831,-2033.53,0.00020745,2]
[372762080,1752751848841,-740.79,0.00020745,2]
[372762081,1752751848850,-475.95,0.00020745,2]
[372762082,1752751848860,-1059.14,0.00020745,2]
[372762083,1752751848870,-630.62,0.00020745,2]
[372762084,1752751848881,-484.65,0.00020745,2]
[372762085,1752751848890,-1182.61,0.00020747,2]
[372762086,1752751848899,-460.0,0.00020747,2]
[372762087,1752751848909,-241.88,0.00020747,2]
[372762088,1752751848919,-752.75,0.00020747,2]
[372762089,1752751848929,-460.0,0.00020747,2]
[372762090,1752751848939,-460.0,0.00020747,2]
[372762091,1752751848948,-460.0,0.00020747,2]
[372762092,1752751848958,-595.36,0.00020747,2]
[372762093,1752751848971,-596.24,0.00020747,2]
[372762094,1752751848981,-536.44,0.00020747,2]
[372762095,1752751848991,-470.42,0.00020747,2]
[372762096,1752751849000,-460.0,0.00020747,2]
[372762097,1752751849010,-3846.76,0.00020747,2]
[372762098,1752751849019,-599.58,0.00020747,2]
[372762099,1752751849029,-417.79,0.00020747,2]
[372762100,1752751849039,-1004.86,0.00020747,2]
[372762101,1752751849048,-460.0,0.00020747,2]
[372762102,1752751849058,-576.28,0.00020747,2]
[372762103,1752751849067,-460.0,0.00020748,2]
[372762104,1752751849077,-2034.08,0.00020748,2]
[372762105,1752751849087,-460.0,0.00020748,2]
[372762106,1752751849097,-908.51,0.00020748,2]
[372762107,1752751849106,-962.34,0.00020748,2]
[372762108,1752751849116,-4626.45,0.00020748,2]
[372762109,1752751849126,-810.85,0.00020748,2]
[372762110,1752751849135,-1245.54,0.00020748,2]
[372762111,1752751849145,-2500.0,0.0002076,2]
[372762112,1752751849155,-9335.88532738,0.00020831,4]
[372762113,1752751849165,-499.85,0.0002085,2]
[372762114,1752751849175,-414.505836,0.00020876,2]
[372762115,1752751849186,-2351.0,0.00020914,2]
[372762116,1752751849196,-23139.88114236,0.00020915,2]
[372762117,1752751849206,-355.61963609,0.00020954,2]
[372762118,1752751849219,-1200.0,0.00020961,2]
[372762119,1752751849229,-3004.49213334,0.00020967,2]
[372762120,1752751849240,-560.0,0.00020974,2]
[372762121,1752751849250,-501.59890884,0.00021016,2]
[372762122,1752751849440,-829.06109116,0.00021016,2]
[372762123,1752751849450,-1329.58939187,0.00021016,2]
[372762124,1752751849605,-1477.75,0.00018281,2]
[372762125,1752751849615,-1477.75,0.00018555,2]
[372762126,1752751849625,-1477.75,0.00018829,2]
[372762127,1752751849634,-1477.75,0.00019103,2]
[372762128,1752751849644,-1477.75,0.00019377,2]
[372762129,1752751849654,-1477.75,0.00019651,2]
[372762130,1752751849663,-1477.75,0.00019925,2]
[372762131,1752751849673,-1477.75,0.00020199,2]
[372762132,1752751849682,-546.85060813,0.00021016,2]
[372762133,1752751849692,-500.0,0.00021016,2]
[372762134,1752751849701,-2000.0,0.00021016,2]
[372762135,1752751849711,-2000.0,0.00021016,2]
[372762136,1752751849724,-2000.0,0.00021016,2]
[372762137,1752751849734,-2000.0,0.00021016,2]